bitfinex-derivatives/quotes_BTCF0:USTF0_20250911
["timestamp","ask_amount","ask_price","bid_price","bid_amount"]
[1757554851593,2.40963281,113910.0,113900.0,1.66894006]
[1757554854685,1.60791281,113910.0,113900.0,1.66894006]
[1757554854889,2.40935281,113910.0,113900.0,1.66894006]
[1757554860499,1.60791281,113910.0,113900.0,1.66894006]
[1757554860798,2.40875281,113910.0,113900.0,1.66894006]
[1757554862001,2.40875281,113910.0,113900.0,1.77918282]
[1757554862407,2.40875281,113910.0,113900.0,1.66894006]
[1757554862793,2.40875281,113910.0,113900.0,1.77918282]
[1757554862988,1.60791281,113910.0,113900.0,1.86695512]
[1757554863294,2.40891281,113910.0,113900.0,1.86695512]
[1757554864202,2.40891281,113910.0,113900.0,1.75671236]
[1757554865300,2.40891281,113910.0,113900.0,1.91351811]
[1757554865998,2.40891281,113910.0,113900.0,1.75671236]
[1757554867404,1.60791281,113910.0,113900.0,1.61708015]
[1757554867595,2.40859281,113910.0,113900.0,1.61708015]
[1757554867795,2.40859281,113910.0,113900.0,1.50671236]
[1757554868403,2.40859281,113910.0,113900.0,1.66351811]
[1757554869301,2.40859281,113910.0,113900.0,1.50671236]
[1757554869699,2.40835281,113910.0,113900.0,1.50671236]
[1757554872507,2.40835281,113910.0,113900.0,1.66351811]
[1757554873198,2.39408672,113910.0,113900.0,1.66351811]
[1757554873394,2.39408672,113910.0,113900.0,1.50671236]
[1757554876502,1.59364672,113910.0,113900.0,1.50671236]
[1757554876704,0.04041419,113930.0,113910.0,0.0877606]
[1757554876908,0.04041419,113930.0,113920.0,0.45238002]
[1757554877105,0.84049419,113930.0,113920.0,1.34238002]
[1757554878910,0.84049419,113930.0,113920.0,1.59193621]
[1757554879305,0.84049419,113930.0,113920.0,1.59293621]
[1757554879803,0.84049419,113930.0,113920.0,1.01293621]
[1757554880107,0.84049419,113930.0,113920.0,1.14293621]
[1757554881213,0.84049419,113930.0,113920.0,1.55293621]
[1757554881412,0.84049419,113930.0,113920.0,1.14293621]
[1757554882008,0.87113419,113930.0,113920.0,0.98496004]
[1757554882202,0.85033,113930.0,113920.0,0.98496004]
[1757554888211,0.85033,113930.0,113920.0,0.85496004]
[1757554888511,0.85033,113930.0,113920.0,1.40496004]
[1757554889211,0.85033,113930.0,113920.0,1.09496004]
[1757554889611,0.85033,113930.0,113920.0,1.37496004]
[1757554890011,0.05025,113930.0,113920.0,1.46271694]
[1757554890203,0.84957,113930.0,113920.0,1.46271694]
[1757554890804,0.84957,113930.0,113920.0,1.62069311]
[1757554891207,0.01961,113930.0,113920.0,1.62069311]
[1757554891405,0.81889,113930.0,113920.0,1.98149311]
[1757554891616,0.81889,113930.0,113920.0,1.82351694]
[1757554892407,0.81881,113930.0,113920.0,2.0521645]
[1757554892609,0.81881,113930.0,113920.0,2.21014067]
[1757554895915,0.8045464,113930.0,113920.0,2.21014067]
[1757554899116,0.09795937,113940.0,113930.0,0.0877492]
[1757554899315,0.93053937,113940.0,113930.0,0.8785492]
[1757554899510,0.93053937,113940.0,113930.0,1.1530876]
[1757554901420,0.93053937,113940.0,113930.0,1.31106377]
[1757554901721,0.93053937,113940.0,113930.0,1.73106377]
[1757554902421,0.93053937,113940.0,113930.0,1.73206377]
[1757554902616,0.93053937,113940.0,113930.0,0.94752537]
[1757554902822,0.93053937,113940.0,113930.0,1.21479457]
[1757554903023,0.93053937,113940.0,113930.0,1.19479457]
[1757554903422,0.93053937,113940.0,113930.0,0.74624537]
[1757554903724,0.93053937,113940.0,113930.0,0.5882692]
[1757554904423,0.93053937,113940.0,113930.0,0.6760184]
[1757554905326,0.93053937,113940.0,113930.0,0.83399457]
[1757554906526,0.93053937,113940.0,113930.0,0.72399457]
[1757554906827,0.93053937,113940.0,113930.0,0.83399457]
[1757554910325,0.93053937,113940.0,113930.0,0.8995492]
[1757554910529,1.06780857,113940.0,113930.0,0.4782692]
[1757554910831,1.42860857,113940.0,113930.0,0.4782692]
[1757554911021,1.42860857,113940.0,113930.0,0.63624537]
[1757554913329,1.42860857,113940.0,113930.0,0.4782692]
[1757554914831,1.42860857,113940.0,113930.0,0.341]
[1757554915035,1.42860857,113940.0,113930.0,0.4782692]
[1757554915824,1.83619747,113940.0,113930.0,0.341]
[1757554916425,1.83619747,113940.0,113930.0,0.4782692]
[1757554917135,1.70016827,113940.0,113930.0,0.4782692]
[1757554918335,1.70016827,113940.0,113930.0,0.58877447]
[1757554918533,0.76249907,113940.0,113930.0,0.58877447]
[1757554918735,1.70000827,113940.0,113930.0,0.58877447]
[1757554919533,1.56273907,113940.0,113930.0,0.58877447]
[1757554919739,1.70000827,113940.0,113930.0,0.45150527]
[1757554919924,0.93297937,113940.0,113930.0,0.45150527]
[1757554920127,0.93297937,113940.0,113930.0,0.70877447]
[1757554920329,0.93297937,113940.0,113930.0,0.5982692]
[1757554920532,1.07024857,113940.0,113930.0,0.5982692]
[1757554920735,0.93297937,113940.0,113930.0,0.5982692]
[1757554921232,0.93305937,113940.0,113930.0,0.5982692]
[1757554925234,0.13137937,113940.0,113930.0,0.5982692]
[1757554925442,0.93269937,113940.0,113930.0,0.5982692]
[1757554925941,0.93269937,113940.0,113930.0,0.9590692]
[1757554926336,0.93269937,113940.0,113930.0,1.0863384]
[1757554926536,0.93269937,113940.0,113930.0,0.9490692]
[1757554930044,0.93269937,113940.0,113930.0,1.0863384]
[1757554930744,0.93265937,113940.0,113930.0,0.9763384]
[1757554931043,0.13137937,113940.0,113930.0,1.0640876]
[1757554931241,0.93281937,113940.0,113930.0,1.6640876]
[1757554931440,0.13137937,113940.0,113930.0,1.9140876]
[1757554931741,0.93277937,113940.0,113930.0,1.9140876]
[1757554931938,0.93277937,113940.0,113930.0,2.07206377]
[1757554933047,0.8903871,113940.0,113930.0,2.07206377]
[1757554936047,0.82101,113940.0,113930.0,2.07206377]
[1757554937548,0.82101,113940.0,113930.0,1.9140876]
[1757554939145,0.82101,113940.0,113930.0,2.02454514]
[1757554939545,0.82101,113940.0,113930.0,1.9140876]
[1757554942551,0.82101,113940.0,113930.0,2.07206377]
[1757554945257,0.82101,113940.0,113930.0,1.79752537]
[1757554945554,0.82101,113940.0,113930.0,2.07206377]
[1757554952362,0.82101,113940.0,113930.0,1.98053437]
[1757554952858,0.82033,113940.0,113930.0,1.98053437]
[1757554957364,0.01961,113940.0,113930.0,1.98053437]
[1757554957766,0.71389,113940.0,113930.0,1.8225582]
[1757554959361,0.71389,113940.0,113930.0,1.5725582]
[1757554962367,0.81965,113940.0,113930.0,1.5725582]
[1757554962570,0.81965,113940.0,113930.0,1.73053437]
[1757554963567,0.01961,113940.0,113930.0,1.73053437]
[1757554963871,0.81957,113940.0,113930.0,1.73053437]
[1757554965768,0.80530733,113940.0,113930.0,1.5725582]
[1757554974398,0.80530733,113940.0,113930.0,1.73052049]
[1757554978493,0.80530733,113940.0,113930.0,1.5725582]
[1757554979399,0.80530733,113940.0,113930.0,1.73052182]
[1757554980796,0.80526733,113940.0,113930.0,1.73052182]
[1757554982096,0.80526733,113940.0,113930.0,1.73052495]
[1757554982890,0.80526733,113940.0,113930.0,1.5725582]
[1757554984299,0.79100472,113940.0,113930.0,1.5725582]
[1757554984495,0.80959472,113940.0,113930.0,1.73052886]
[1757554985390,0.80959472,113940.0,113930.0,1.5725582]
[1757554985592,0.80959472,113940.0,113930.0,1.3895492]
[1757554985792,0.80959472,113940.0,113930.0,1.5725582]
[1757554989502,0.80959472,113940.0,113930.0,1.73053431]
[1757554990796,0.81851,113940.0,113930.0,1.73053431]
[1757554991103,0.81851,113940.0,113930.0,1.5725582]
[1757554993705,0.01859,113940.0,113930.0,1.5725582]
[1757554993903,0.06123883,113950.0,113940.0,0.0877415]
[1757554994103,0.86103883,113950.0,113940.0,1.65952626]
[1757554994807,0.86103883,113950.0,113940.0,1.5015505]
[1757554996507,0.86103883,113950.0,113940.0,1.65952626]
[1757554997305,0.86103883,113950.0,113940.0,1.23952626]
[1757554997505,0.05239,113950.0,113940.0,1.12952626]
[1757554997705,1.82217,113970.0,113960.0,0.0954661]
[1757554997912,2.62193,113970.0,113960.0,1.6007796]
[1757554998410,2.63069636,113970.0,113960.0,1.6007796]
[1757554998906,2.62193,113970.0,113960.0,1.9615796]
[1757555000503,2.5692,113970.0,113960.0,2.11955536]
[1757555004711,2.5692,113970.0,113960.0,1.9615796]
[1757555006213,2.5692,113970.0,113960.0,2.07152091]
[1757555006615,2.5692,113970.0,113960.0,1.9615796]
[1757555007113,2.58739,113970.0,113960.0,1.8700751]
[1757555010014,2.58739,113970.0,113960.0,1.9799709]
[1757555010507,2.58739,113970.0,113960.0,1.97996733]
[1757555012615,2.56876,113970.0,113960.0,1.97996733]
[1757555012816,2.56876,113970.0,113960.0,1.8700751]
[1757555013016,2.58695,113970.0,113960.0,1.8700751]
[1757555013616,2.58695,113970.0,113960.0,1.97996452]
[1757555014321,2.58695,113970.0,113960.0,2.20848235]
[1757555015013,2.58695,113970.0,113960.0,2.07130674]
[1757555016118,2.58695,113970.0,113960.0,1.96141732]
[1757555016321,2.58691,113970.0,113960.0,1.96141732]
[1757555018827,2.58691,113970.0,113960.0,2.07136568]
[1757555019821,1.78775,113970.0,113960.0,2.07136568]
[1757555020322,2.58691,113970.0,113960.0,2.20854129]
[1757555020816,2.58691,113970.0,113960.0,2.09859293]
[1757555022017,1.78775,113970.0,113960.0,2.09859293]
[1757555022222,2.58691,113970.0,113960.0,2.09859293]
[1757555022622,2.58691,113970.0,113960.0,1.6870661]
[1757555022823,2.58691,113970.0,113960.0,2.09859293]
[1757555024527,1.78775,113970.0,113960.0,2.09859293]
[1757555024824,2.58687,113970.0,113960.0,2.09859293]
[1757555027428,1.78775,113970.0,113960.0,2.09859293]
[1757555027727,2.58687,113970.0,113960.0,2.09859293]
[1757555029725,0.81731,113970.0,113960.0,2.09859293]
[1757555031032,0.01819,113970.0,113960.0,2.09859293]
[1757555031329,0.81731,113970.0,113960.0,2.09859293]
[1757555031929,0.81731,113970.0,113960.0,2.25656869]
[1757555032322,0.01819,113970.0,113960.0,2.25656869]
[1757555032527,0.81731,113970.0,113960.0,2.25656869]
[1757555032728,0.81731,113970.0,113960.0,2.09859293]
[1757555033927,0.81727,113970.0,113960.0,2.09859293]
[1757555035031,0.81727,113970.0,113960.0,2.25656869]
[1757555035930,0.81727,113970.0,113960.0,1.84504186]
[1757555036132,0.81727,113970.0,113960.0,2.11939308]
[1757555036731,0.81727,113970.0,113960.0,1.96141732]
[1757555038024,0.81727,113970.0,113960.0,2.09859293]
[1757555039232,0.01819,113970.0,113960.0,2.09859293]
[1757555039430,0.01859,113980.0,113970.0,0.0877184]
[1757555039733,0.84896,113980.0,113970.0,1.56559962]
[1757555039928,0.84896,113980.0,113970.0,1.72357538]
[1757555040824,0.84896,113980.0,113970.0,1.44922416]
[1757555041026,0.84996,113980.0,113970.0,1.72357538]
[1757555041525,0.85196,113980.0,113970.0,1.72357538]
[1757555042425,0.85196,113980.0,113970.0,1.56559962]
[1757555043237,0.85196,113980.0,113970.0,1.72357538]
[1757555045435,0.85196,113980.0,113970.0,1.63585698]
[1757555046835,0.85196,113980.0,113970.0,1.10585698]
[1757555047137,0.85196,113980.0,113970.0,0.96070561]
[1757555047631,0.85196,113980.0,113970.0,1.09788122]
[1757555049635,0.85196,113980.0,113970.0,1.25585698]
[1757555051342,0.85196,113980.0,113970.0,1.11868137]
[1757555051543,1.73711122,113980.0,113970.0,0.46797576]
[1757555051843,1.73711122,113980.0,113970.0,0.7155797]
[1757555052038,1.73711122,113980.0,113970.0,0.55760394]
[1757555052845,1.59993561,113980.0,113970.0,0.55760394]
[1757555053036,1.73711122,113980.0,113970.0,0.44717561]
[1757555054342,1.73711122,113980.0,113970.0,0.55752439]
[1757555055239,1.73711122,113980.0,113970.0,0.42034878]
[1757555055437,1.73711122,113980.0,113970.0,0.55752439]
[1757555058844,0.93803122,113980.0,113970.0,0.55752439]
[1757555059145,2.43803122,113980.0,113970.0,0.42034878]
[1757555059346,3.23699122,113980.0,113970.0,0.55752439]
[1757555062245,2.43803122,113980.0,113970.0,0.55752439]
[1757555062447,3.23699122,113980.0,113970.0,0.55752439]
[1757555064146,3.23699122,113980.0,113970.0,0.42034878]
[1757555064444,3.23699122,113980.0,113970.0,0.55752439]
[1757555064949,3.23699122,113980.0,113970.0,0.42034878]
[1757555065342,2.96264,113980.0,113970.0,0.42034878]
[1757555065542,3.23699122,113980.0,113970.0,0.55752439]
[1757555066048,3.23699122,113980.0,113970.0,0.42034878]
[1757555066247,3.23699122,113980.0,113970.0,0.55752439]
[1757555067552,1.73699122,113980.0,113970.0,0.55752439]
[1757555068047,3.50611122,113980.0,113970.0,0.55752439]
[1757555068559,3.23176,113980.0,113970.0,0.55752439]
[1757555068748,3.50611122,113980.0,113970.0,0.42034878]
[1757555068944,3.50611122,113980.0,113970.0,0.31]
[1757555069249,3.50611122,113980.0,113970.0,0.42034878]
[1757555070354,3.50611122,113980.0,113970.0,0.55752439]
[1757555075759,2.70715122,113980.0,113970.0,0.55752439]
[1757555075964,3.50607122,113980.0,113970.0,0.55752439]
[1757555076358,3.32319643,113980.0,113970.0,0.42034878]
[1757555077264,3.16467286,113980.0,113970.0,0.42034878]
[1757555077457,2.36575286,113980.0,113970.0,0.42034878]
[1757555077649,2.27427643,113980.0,113970.0,0.51182521]
[1757555077957,2.98172,113980.0,113970.0,0.51229521]
[1757555079249,2.98172,113980.0,113970.0,0.51182521]
[1757555080358,3.07319643,113980.0,113970.0,0.51182521]
[1757555087761,2.27427643,113980.0,113970.0,0.51182521]
[1757555088060,3.07315643,113980.0,113970.0,0.51182521]
[1757555088259,2.98168,113980.0,113970.0,0.42034878]
[1757555088661,3.07315643,113980.0,113970.0,0.51182521]
[1757555088865,3.07315643,113980.0,113970.0,0.42034878]
[1757555089056,3.07315643,113980.0,113970.0,0.51182521]
[1757555089859,3.23168,113980.0,113970.0,0.42034878]
[1757555090055,3.41463286,113980.0,113970.0,0.42034878]
[1757555093664,4.91463286,113980.0,113970.0,0.42034878]
[1757555097970,4.91463286,113980.0,113970.0,0.27745878]
[1757555098166,4.91463286,113980.0,113970.0,0.16711]
[1757555098771,3.41463286,113980.0,113970.0,0.16711]
[1757555103672,2.61575286,113980.0,113970.0,0.16711]
[1757555103874,3.41447286,113980.0,113970.0,0.16711]
[1757555110575,3.50594929,113980.0,113970.0,0.26]
[1757555110974,3.48735929,113980.0,113970.0,0.16502]
[1757555111470,3.48735929,113980.0,113960.0,0.01724]
[1757555111672,0.75558324,113970.0,113960.0,0.19724]
[1757555113972,1.55426324,113970.0,113960.0,0.19724]
[1757555115074,0.75558324,113970.0,113960.0,0.19724]
[1757555115276,1.55426324,113970.0,113960.0,0.19724]
[1757555132189,0.75558324,113970.0,113960.0,0.19724]
[1757555132390,1.55418324,113970.0,113960.0,0.22787]
[1757555133088,1.46270681,113970.0,113960.0,0.22787]
[1757555133593,1.55418324,113970.0,113960.0,0.22787]
[1757555134591,1.55418324,113970.0,113960.0,0.19724]
[1757555134790,1.68325742,113970.0,113960.0,0.19724]
[1757555136397,1.77483936,113970.0,113960.0,0.19724]
[1757555143998,0.97623936,113970.0,113960.0,0.19724]
[1757555144202,1.77467936,113970.0,113960.0,0.19724]
[1757555144398,0.97623936,113970.0,113960.0,0.19724]
[1757555144599,1.77467936,113970.0,113960.0,0.19724]
[1757555146299,0.84716518,113970.0,113960.0,0.22787]
[1757555146498,1.64560518,113970.0,113960.0,0.22787]
[1757555146902,3.14560518,113970.0,113960.0,0.22787]
[1757555147900,2.87107038,113970.0,113960.0,0.22787]
[1757555148101,2.07263038,113970.0,113960.0,0.22787]
[1757555148305,3.00829778,113970.0,113960.0,0.22787]
[1757555150495,3.14556518,113970.0,113960.0,0.22787]
[1757555159823,3.00817778,113970.0,113960.0,0.47787]
[1757555161019,3.14544518,113970.0,113960.0,0.47787]
[1757555161522,3.00817778,113970.0,113960.0,0.47787]
[1757555161716,3.14544518,113970.0,113960.0,0.47787]
[1757555178439,4.91512518,113970.0,113960.0,0.47787]
[1757555179340,4.91512518,113970.0,113960.0,0.19724]
[1757555182241,4.11684518,113970.0,113960.0,0.19724]
[1757555182442,4.91484518,113970.0,113960.0,0.19724]
[1757555185146,4.11684518,113970.0,113960.0,0.19724]
[1757555185344,4.91480518,113970.0,113960.0,0.19724]
[1757555187247,4.11684518,113970.0,113960.0,0.19724]
[1757555187448,4.11684518,113970.0,113960.0,0.22722]
[1757555187652,4.77749778,113970.0,113960.0,0.22722]
[1757555188550,4.91476518,113970.0,113960.0,0.22722]
[1757555190452,3.84231038,113970.0,113960.0,0.6144874]
[1757555190748,2.1508981,113970.0,113960.0,0.8817548]
[1757555190950,2.5879781,113970.0,113960.0,0.8817548]
[1757555191251,2.5879781,113970.0,113960.0,0.99201987]
[1757555191551,1.7900981,113970.0,113960.0,0.99201987]
[1757555191747,2.5879781,113970.0,113960.0,0.99201987]
[1757555192544,2.5879781,113970.0,113960.0,1.35281987]
[1757555192750,2.5879781,113970.0,113960.0,1.2425548]
[1757555192951,2.5879781,113970.0,113960.0,1.35283141]
[1757555193150,2.5879781,113970.0,113960.0,1.34283141]
[1757555193451,2.5879781,113970.0,113960.0,1.22283141]
[1757555193650,2.5879781,113970.0,113960.0,1.34283141]
[1757555198351,2.5879781,113970.0,113960.0,1.25122945]
[1757555199243,2.5879781,113970.0,113960.0,1.00122945]
[1757555201955,1.7900981,113970.0,113960.0,1.00122945]
[1757555202252,2.5877381,113970.0,113960.0,1.48122945]
[1757555202951,2.5876981,113970.0,113960.0,1.48122945]
[1757555203343,2.5876981,113970.0,113960.0,1.37095284]
[1757555204051,2.5876981,113970.0,113960.0,1.48122945]
[1757555206151,2.5876981,113970.0,113960.0,1.37095284]
[1757555210256,2.5876981,113970.0,113960.0,1.48122945]
[1757555211958,2.5876981,113970.0,113960.0,1.14122945]
[1757555217764,2.5876981,113970.0,113960.0,1.03095284]
[1757555219065,2.5876981,113970.0,113960.0,1.43867894]
[1757555219766,2.5876981,113970.0,113960.0,1.54890183]
[1757555220368,2.5876981,113970.0,113960.0,1.43867894]
[1757555220861,2.5876981,113970.0,113960.0,1.54902348]
[1757555222666,2.5876981,113970.0,113960.0,1.43867894]
[1757555224370,2.5876981,113970.0,113960.0,1.5966547]
[1757555225364,2.5876981,113970.0,113960.0,1.5089286]
[1757555225571,2.5876981,113970.0,113960.0,1.1189286]
[1757555228669,2.5876981,113970.0,113960.0,1.4589286]
[1757555231572,2.5876981,113970.0,113960.0,1.30095284]
[1757555233777,2.56728,113970.0,113960.0,1.30095284]
[1757555237278,2.56728,113970.0,113960.0,1.4589286]
[1757555237574,2.56728,113970.0,113960.0,1.0981286]
[1757555237779,2.56728,113970.0,113960.0,1.4589286]
[1757555240881,0.7976,113970.0,113960.0,1.4589286]
[1757555241279,0.7976,113970.0,113960.0,1.30095284]
[1757555246085,0.7976,113970.0,113960.0,1.4589286]
[1757555246586,0.7976,113970.0,113960.0,1.5693524]
[1757555246984,0.7976,113970.0,113960.0,1.41137664]
[1757555247694,0.7976,113970.0,113960.0,1.09137664]
[1757555247896,0.7976,113970.0,113960.0,0.98095284]
[1757555248197,0.7976,113970.0,113960.0,1.09137758]
[1757555248494,0.7976,113970.0,113960.0,1.24935334]
[1757555248993,0.7976,113970.0,113960.0,1.1389286]
[1757555251697,0.47272537,113980.0,113970.0,0.04573]
[1757555251897,1.26976537,113980.0,113970.0,0.44612122]
[1757555252194,1.26976537,113980.0,113970.0,0.53758764]
[1757555252390,3.03896537,113980.0,113970.0,0.53758764]
[1757555252896,3.03996537,113980.0,113970.0,0.53758764]
[1757555254103,3.04196537,113980.0,113970.0,0.53758764]
[1757555254398,3.04196537,113980.0,113970.0,0.42719642]
[1757555255598,3.04196537,113980.0,113970.0,0.53758534]
[1757555255993,1.27276537,113980.0,113970.0,0.53758534]
[1757555256692,1.27276537,113980.0,113970.0,0.44611892]
[1757555257599,1.27276537,113980.0,113970.0,0.33573]
[1757555258302,1.45573313,113980.0,113970.0,0.47294709]
[1757555258996,1.18129895,113980.0,113970.0,0.47294709]
[1757555259199,1.45573313,113980.0,113970.0,0.47294709]
[1757555260398,1.31851604,113980.0,113970.0,0.47294709]
[1757555260698,3.08771604,113980.0,113970.0,0.47294709]
[1757555262498,3.22493313,113980.0,113970.0,0.47294709]
[1757555263099,3.08771604,113980.0,113970.0,0.47294709]
[1757555263898,3.08771604,113980.0,113970.0,0.33573]
[1757555264097,3.08771604,113980.0,113970.0,0.47294709]
[1757555270607,2.29067604,113980.0,113970.0,0.47294709]
[1757555270897,1.7722,113980.0,113970.0,1.10096418]
[1757555271098,2.569,113980.0,113970.0,1.81868268]
[1757555271696,2.569,113980.0,113970.0,1.97665844]
[1757555271897,2.569,113980.0,113970.0,1.70222426]
[1757555272097,2.569,113980.0,113970.0,1.97665844]
[1757555279704,1.7722,113980.0,113970.0,1.97665844]
[1757555280002,2.56888,113980.0,113970.0,1.97665844]
[1757555281399,2.56888,113980.0,113970.0,1.81868268]
[1757555283019,2.56884,113980.0,113970.0,1.81868268]
[1757555284618,2.56884,113980.0,113970.0,1.97665844]
[1757555285019,2.56884,113980.0,113970.0,1.70222426]
[1757555285320,2.56884,113980.0,113970.0,1.97665844]
[1757555288915,1.7722,113980.0,113970.0,1.97665844]
[1757555289120,2.56876,113980.0,113970.0,1.72665844]
[1757555291920,2.56876,113980.0,113970.0,1.56868268]
[1757555292813,2.56876,113980.0,113970.0,1.72665844]
[1757555295931,2.56876,113980.0,113970.0,1.56868268]
[1757555297425,2.56876,113980.0,113970.0,1.72665844]
[1757555299225,0.79956,113980.0,113970.0,1.72665844]
[1757555301526,0.79956,113980.0,113970.0,1.56868268]
[1757555309830,0.003,113980.0,113970.0,1.56868268]
[1757555310132,0.79928,113980.0,113970.0,1.56868268]
[1757555311130,0.79928,113980.0,113970.0,1.72638557]
[1757555312931,0.79928,113980.0,113970.0,1.56868268]
[1757555315234,0.79928,113980.0,113970.0,1.72638557]
[1757555316034,0.79928,113980.0,113970.0,1.56868268]
[1757555320333,0.79928,113980.0,113970.0,1.47712744]
[1757555321843,0.003,113980.0,113970.0,1.47712744]
[1757555322145,1.76896,114000.0,113990.0,0.04406]
[1757555322439,2.56508,114000.0,113990.0,1.11596793]
[1757555322638,1.77764384,114000.0,113990.0,1.11596793]
[1757555322845,2.82376384,114000.0,113990.0,1.5682074]
[1757555323048,2.82376384,114000.0,113990.0,1.36629947]
[1757555323546,2.82376384,114000.0,113990.0,1.36729947]
[1757555324647,2.82376384,114000.0,113990.0,1.47773359]
[1757555324947,2.82376384,114000.0,113990.0,1.36729947]
[1757555325248,2.82376384,114000.0,113990.0,1.52512493]
[1757555325448,2.8941497,114000.0,113990.0,1.52512493]
[1757555327755,2.8941097,114000.0,113990.0,1.52512493]
[1757555328343,2.8941097,114000.0,113990.0,1.36729947]
[1757555331059,2.8941097,114000.0,113990.0,1.47767121]
[1757555331453,2.6441097,114000.0,113990.0,1.56537431]
[1757555332656,2.6441097,114000.0,113990.0,1.3635631]
[1757555332854,2.6441097,114000.0,113990.0,1.45500257]
[1757555334058,2.6441097,114000.0,113990.0,1.61282803]
[1757555336762,2.6441097,114000.0,113990.0,1.7231515]
[1757555337259,2.6441097,114000.0,113990.0,1.56532604]
[1757555337661,0.8751497,114000.0,113990.0,1.45500257]
[1757555338052,0.8751497,114000.0,113990.0,1.61282803]
[1757555338560,0.8750297,114000.0,113990.0,1.61282803]
[1757555340462,0.8750297,114000.0,113990.0,1.52138856]
[1757555340760,0.8750297,114000.0,113990.0,1.61282803]
[1757555342162,0.8750297,114000.0,113990.0,1.45500257]
[1757555344464,1.66870864,114000.0,113990.0,0.36506]
[1757555344667,1.66870864,114000.0,113990.0,0.33723]
[1757555346264,1.4858297,114000.0,113990.0,0.33723]
[1757555346663,1.66870864,114000.0,113990.0,0.33723]
[1757555346860,3.16870864,114000.0,113990.0,0.33723]
[1757555352866,1.66870864,114000.0,113990.0,0.33723]
[1757555356373,3.16870864,114000.0,113990.0,0.33723]
[1757555358376,2.37274864,114000.0,113990.0,0.33723]
[1757555358575,3.16866864,114000.0,113990.0,0.33723]
[1757555363275,3.26010811,114000.0,113960.0,0.1546406]
[1757555363476,0.3608,113970.0,113960.0,0.1746406]
[1757555363781,3.10871894,113970.0,113960.0,0.33724]
[1757555364076,3.01727947,113970.0,113960.0,0.33724]
[1757555365279,3.10871894,113970.0,113960.0,0.34224]
[1757555366280,3.10871894,113970.0,113960.0,0.33924]
[1757555367682,3.10875894,113970.0,113960.0,0.33924]
[1757555368482,3.35875894,113970.0,113960.0,0.33924]
[1757555368689,2.56279894,113970.0,113960.0,0.33924]
[1757555368886,3.35875894,113970.0,113960.0,0.33924]
[1757555370786,2.56279894,113970.0,113960.0,0.33924]
[1757555371189,3.35875894,113970.0,113960.0,0.33924]
[1757555372088,2.56279894,113970.0,113960.0,0.33924]
[1757555372385,3.35879894,113970.0,113960.0,0.33924]
[1757555372886,2.56279894,113970.0,113960.0,0.33924]
[1757555373085,3.35879894,113970.0,113960.0,0.33924]
[1757555379290,3.10879894,113970.0,113960.0,0.33924]
[1757555379985,3.20023841,113970.0,113960.0,0.15893537]
[1757555380389,3.22530076,113970.0,113960.0,0.30799]
[1757555380790,3.22530076,113970.0,113960.0,0.30229]
[1757555381088,3.13686129,113970.0,113960.0,0.30229]
[1757555381992,3.13986129,113970.0,113960.0,0.30229]
[1757555382284,3.13986129,113970.0,113960.0,0.29276]
[1757555382488,3.36894247,113970.0,113960.0,0.29276]
[1757555382885,3.61894247,113970.0,113960.0,0.05]
[1757555383086,3.61894247,113970.0,113960.0,0.32599]
[1757555383386,3.61894247,113970.0,113960.0,0.28599]
[1757555383587,3.61894247,113970.0,113960.0,0.28116]
[1757555383779,3.61894247,113970.0,113960.0,0.27463]
[1757555384190,3.61894247,113970.0,113960.0,0.18684208]
[1757555384389,3.61894247,113970.0,113960.0,0.14294812]
[1757555384591,3.61894247,113970.0,113960.0,0.09905416]
[1757555384890,3.61894247,113970.0,113960.0,0.26472376]
[1757555385091,3.61894247,113970.0,113960.0,0.18820584]
[1757555385392,3.61894247,113970.0,113960.0,0.14431188]
[1757555385693,3.61894247,113970.0,113960.0,0.27332604]
[1757555385893,3.61894247,113970.0,113930.0,0.01599]
[1757555386088,1.13356012,113940.0,113930.0,0.04599]
[1757555386391,1.13356012,113940.0,113930.0,0.30599]
[1757555386392,1.92964012,113940.0,113930.0,0.30599]
[1757555387193,1.13356012,113940.0,113930.0,0.30599]
[1757555387492,1.92964012,113940.0,113930.0,0.30599]
[1757555388487,1.79232008,113940.0,113930.0,0.30599]
[1757555389093,1.81736828,113940.0,113930.0,0.30599]
[1757555389393,1.79232008,113940.0,113930.0,0.30599]
[1757555390196,1.81736852,113940.0,113930.0,0.30599]
[1757555390387,1.02128852,113940.0,113930.0,0.30599]
[1757555390595,1.81740852,113940.0,113930.0,0.30599]
[1757555390793,1.88741034,113940.0,113930.0,0.30599]
[1757555391294,1.09129034,113940.0,113930.0,0.30599]
[1757555391595,2.02477038,113940.0,113930.0,0.30599]
[1757555391894,1.88745034,113940.0,113930.0,0.30599]
[1757555392689,1.88745034,113940.0,113930.0,0.29474999]
[1757555392690,2.02477038,113940.0,113930.0,0.29474999]
[1757555393690,2.02477038,113940.0,113930.0,0.26287999]
[1757555393890,2.02477038,113940.0,113930.0,0.24123999]
[1757555394091,2.02477038,113940.0,113930.0,0.23648999]
[1757555395207,1.09129034,113940.0,113930.0,0.23648999]
[1757555395392,1.88749034,113940.0,113930.0,0.23648999]
[1757555396696,2.02481038,113940.0,113930.0,0.23648999]
[1757555397795,1.22861038,113940.0,113930.0,0.23648999]
[1757555398001,1.88749034,113940.0,113930.0,0.26748999]
[1757555399206,1.09129034,113940.0,113930.0,0.26748999]
[1757555399399,1.88749034,113940.0,113930.0,0.26748999]
[1757555399905,1.09129034,113940.0,113930.0,0.26748999]
[1757555400108,1.88749034,113940.0,113930.0,0.26748999]
[1757555400400,2.02481038,113940.0,113930.0,0.23648999]
[1757555402903,2.02481038,113940.0,113930.0,0.19890999]
[1757555403204,2.02481038,113940.0,113930.0,0.14958999]
[1757555403405,2.02481038,113940.0,113930.0,0.33836]
[1757555404406,2.02485038,113940.0,113930.0,0.33836]
[1757555409608,1.22861038,113940.0,113930.0,0.33836]
[1757555409810,1.88753034,113940.0,113930.0,0.33836]
[1757555410709,2.02485038,113940.0,113930.0,0.33836]
[1757555414711,1.22861038,113940.0,113930.0,0.33836]
[1757555414912,2.02481038,113940.0,113930.0,0.33836]
[1757555415807,2.02481038,113940.0,113930.0,0.24676509]
[1757555416013,2.02481038,113940.0,113930.0,0.21777078]
[1757555416204,2.02481038,113940.0,113930.0,0.15073882]
[1757555416405,2.02481038,113940.0,113930.0,0.01836]
[1757555416604,2.02481038,113940.0,113930.0,0.33183]
[1757555416801,2.02481038,113940.0,113930.0,0.31333899]
[1757555417006,2.02481038,113940.0,113930.0,0.3236601]
[1757555417311,1.22861038,113940.0,113930.0,0.31477965]
[1757555417510,2.02481038,113940.0,113930.0,0.31477965]
[1757555417913,1.22861038,113940.0,113930.0,0.31477965]
[1757555418114,2.02481038,113940.0,113930.0,0.31477965]
[1757555418415,2.02481038,113940.0,113930.0,0.27646002]